Workbook

Sheet Sheet1
B1: МАОУ "Троельжанская СОШ" | E1: Утвердил: | F1: должность | G1: директор
F2: фамилия | G2: Мясникова Т.А.
D3: 7-11 лет | F3: дата | G3: 2 | H3: 9 | I3: 2024
G4: день | H4: месяц | I4: год
A5: День недели | B5: Прием пищи | C5: Раздел меню | D5: Блюда | E5: Вес блюда, г | F5: Белки | G5: Жиры | H5: Углеводы | I5: Калорийность | J5: № рецептуры | K5: Цена
A6: 1 | B6: Завтрак | C6: гор.блюдо | D6: Курица в томате с овощами /рис отварной/бутерброд с сыром | E6: 290 | F6: 20.23 | G6: 24.72 | H6: 44.93 | I6: 484 | J6: 405/414/90 | K6: 85.26
C8: гор.напиток | D8: Чай с сахаром | E8: 200 | F8: 0 | G8: 0.6 | H8: 15 | I8: 60 | J8: 493 | K8: 5
C9: хлеб | D9: Хлеб пшеничный/хлеб ржаной | E9: 60 | F9: 3.6 | G9: 0.48 | H9: 21.44 | I9: 123 | J9: 108/109 | K9: 6
C10: фрукты
C13: итого | E13: =SUM(E6:E12) -> 550 | F13: =SUM(F6:F12) -> 23.83 | G13: =SUM(G6:G12) -> 25.8 | H13: =SUM(H6:H12) -> 81.37 | I13: =SUM(I6:I12) -> 667 | K13: =SUM(K6:K12) -> 96.26
A14: =A6 -> 1 | B14: Обед | C14: закуска
C15: 1 блюдо
C16: 2 блюдо
C17: гарнир
C18: напиток
C19: хлеб бел.
C20: хлеб черн.
C23: итого | E23: =SUM(E14:E22) -> 0 | F23: 0 | G23: 0 | H23: 0 | I23: 0 | K23: =SUM(K14:K22) -> 0
A24: =A6 -> 1 | B24: Итого за день: | E24: =E13+E23 -> 550 | F24: 23.83 | G24: 25.8 | H24: 81.37 | I24: 667 | K24: =K13+K23 -> 96.26
A25: 2 | B25: Завтрак | C25: гор.блюдо | D25: Кнели из кур с соусом /каша гречневая/вафли | E25: 280 | F25: 19.75 | G25: 21.1 | H25: 68.41 | I25: 542 | K25: 84.01
C27: гор.напиток | D27: Чай с сахаром | E27: 200 | F27: 0.1 | H27: 15 | I27: 60 | K27: 5
C28: хлеб | D28: Хлеб пшеничный /хлеб ржаной | E28: 60 | F28: 4.26 | G28: 0.6 | H28: 24.78 | I28: 123 | K28: 7.25
C29: фрукты
C32: итого | E32: =SUM(E25:E31) -> 540 | F32: =SUM(F25:F31) -> 24.11 | G32: =SUM(G25:G31) -> 21.7 | H32: =SUM(H25:H31) -> 108.19 | I32: =SUM(I25:I31) -> 725 | K32: =SUM(K25:K31) -> 96.26
A33: =A25 -> 2 | B33: Обед | C33: закуска
C34: 1 блюдо
C35: 2 блюдо
C36: гарнир
C37: напиток
C38: хлеб бел.
C39: хлеб черн.
C42: итого | E42: =SUM(E33:E41) -> 0 | F42: 0 | G42: 0 | H42: 0 | I42: 0 | K42: =SUM(K33:K41) -> 0
A43: =A25 -> 2 | B43: Итого за день: | E43: =E32+E42 -> 540 | F43: 24.11 | G43: 21.7 | H43: 108.19 | I43: 725 | K43: =K32+K42 -> 96.26
A44: 3 | B44: Завтрак | C44: гор.блюдо | D44: Котлета рыбная с соусом /картофельное пюре/печенье | E44: 280 | F44: 14.07 | G44: 14.07 | H44: 47.9 | I44: 376 | J44: 345/435/590 | K44: 78.26
C46: гор.напиток | D46: Компот из яблок | E46: 200 | F46: 0.5 | G46: 0.2 | H46: 23.1 | I46: 96 | J46: 507 | K46: 12
C47: хлеб | D47: Хлеб пшеничный /хлеб ржаной | E47: 60 | F47: 4.26 | G47: 0.6 | H47: 24.78 | I47: 123 | J47: 108/109 | K47: 6
C48: фрукты
C51: итого | E51: =SUM(E44:E50) -> 540 | F51: =SUM(F44:F50) -> 18.83 | G51: =SUM(G44:G50) -> 14.87 | H51: =SUM(H44:H50) -> 95.78 | I51: =SUM(I44:I50) -> 595 | K51: =SUM(K44:K50) -> 96.26
A52: =A44 -> 3 | B52: Обед | C52: закуска
C53: 1 блюдо
C54: 2 блюдо
C55: гарнир
C56: напиток
C57: хлеб бел.
C58: хлеб черн.
C61: итого | E61: =SUM(E52:E60) -> 0 | F61: 0 | G61: 0 | H61: 0 | I61: 0 | K61: =SUM(K52:K60) -> 0
A62: =A44 -> 3 | B62: Итого за день: | E62: =E51+E61 -> 540 | F62: 18.83 | G62: 14.87 | H62: 95.78 | I62: 595 | K62: =K51+K61 -> 96.26
A63: 4 | B63: Завтрак | C63: гор.блюдо | D63: Фрикадельки из кур/каша ячневая/пряник | E63: 285 | F63: 16.14 | G63: 20.26 | H63: 57.93 | I63: 468 | J63: 410/435/255/589 | K63: 72.48
C65: гор.напиток | D65: Компот из смеси сухофруктов | E65: 200 | F65: 0.5 | H65: 27 | I65: 110 | J65: 508 | K65: 16.35
C66: хлеб | D66: Хлеб пшеничный /хлеб ржаной | E66: 60 | F66: 4.26 | G66: 0.6 | H66: 24.78 | I66: 123 | J66: 108/109 | K66: 7.43
C67: фрукты
C70: итого | E70: =SUM(E63:E69) -> 545 | F70: =SUM(F63:F69) -> 20.9 | G70: =SUM(G63:G69) -> 20.86 | H70: =SUM(H63:H69) -> 109.71 | I70: =SUM(I63:I69) -> 701 | K70: =SUM(K63:K69) -> 96.26
A71: =A63 -> 4 | B71: Обед | C71: закуска
C72: 1 блюдо
C73: 2 блюдо
C74: гарнир
C75: напиток
C76: хлеб бел.
C77: хлеб черн.
C80: итого | E80: =SUM(E71:E79) -> 0 | F80: 0 | G80: 0 | H80: 0 | I80: 0 | K80: =SUM(K71:K79) -> 0
A81: =A63 -> 4 | B81: Итого за день: | E81: =E70+E80 -> 545 | F81: 20.9 | G81: 20.86 | H81: 109.71 | I81: 701 | K81: =K70+K80 -> 96.26
A82: 5 | B82: Завтрак | C82: гор.блюдо | D82: Тефтели из говядины с соусом /каша пшенная/вафли | E82: 280 | F82: 17.68 | G82: 21.34 | H82: 59.03 | I82: 499 | J82: 388/258/588 | K82: 81.06
C84: гор.напиток | D84: Напиток из шиповника | E84: 200 | F84: 0.7 | G84: 0.3 | H84: 22.8 | I84: 97 | J84: 519 | K84: 9.2
C85: хлеб | D85: Хлеб пшеничный /хлеб ржаной | E85: 60 | F85: 4.26 | G85: 0.6 | H85: 24.78 | I85: 123 | J85: 108/109 | K85: 6
C86: фрукты
C89: итого | E89: =SUM(E82:E88) -> 540 | F89: =SUM(F82:F88) -> 22.64 | G89: =SUM(G82:G88) -> 22.24 | H89: =SUM(H82:H88) -> 106.61 | I89: =SUM(I82:I88) -> 719 | K89: =SUM(K82:K88) -> 96.26
A90: =A82 -> 5 | B90: Обед | C90: закуска
C91: 1 блюдо
C92: 2 блюдо
C93: гарнир
C94: напиток
C95: хлеб бел.
C96: хлеб черн.
C99: итого | E99: =SUM(E90:E98) -> 0 | F99: 0 | G99: 0 | H99: 0 | I99: 0 | K99: =SUM(K90:K98) -> 0
A100: =A82 -> 5 | B100: Итого за день: | E100: =E89+E99 -> 540 | F100: 22.64 | G100: 22.24 | H100: 106.61 | I100: 719 | K100: =K89+K99 -> 96.26
A101: 1 | B101: Завтрак | C101: гор.блюдо | D101: Котлета "Школьная" с соусом /макар.изд.отварные/вафли | E101: 280 | F101: 15.87 | G101: 10.64 | H101: 63.31 | I101: 413 | J101: 388/237/590 | K101: 81.06
C103: гор.напиток | D103: Чай с лимоном | E103: 200 | F103: 0.1 | H103: 15.2 | I103: 61 | K103: 9.2
C104: хлеб | D104: Хлеб пшеничный /хлеб ржаной | E104: 60 | F104: 4.26 | G104: 0.6 | H104: 24.78 | I104: 123 | J104: 501 | K104: 6
C105: фрукты
C108: итого | E108: =SUM(E101:E107) -> 540 | F108: =SUM(F101:F107) -> 20.23 | G108: =SUM(G101:G107) -> 11.24 | H108: =SUM(H101:H107) -> 103.29 | I108: =SUM(I101:I107) -> 597 | K108: =SUM(K101:K107) -> 96.26
A109: =A101 -> 1 | B109: Обед | C109: закуска
C110: 1 блюдо
C111: 2 блюдо
C112: гарнир
C113: напиток
C114: хлеб бел.
C115: хлеб черн.
C118: итого | E118: =SUM(E109:E117) -> 0 | F118: 0 | G118: 0 | H118: 0 | I118: 0 | K118: =SUM(K109:K117) -> 0
A119: =A101 -> 1 | B119: Итого за день: | E119: =E108+E118 -> 540 | F119: 20.23 | G119: 11.24 | H119: 103.29 | I119: 597 | K119: =K108+K118 -> 96.26
A120: 2 | B120: Завтрак | C120: гор.блюдо | D120: Рыба,туш.в томате с овощами/рис отварной/печенье | E120: 280 | F120: 14.81 | G120: 14.16 | H120: 60.33 | I120: 432 | J120: 343/414/564 | K120: 73.91
C122: гор.напиток | D122: Компот из смеси сухофруктов | E122: 200 | F122: 0.5 | H122: 27 | I122: 110 | J122: 508 | K122: 16.35
C123: хлеб | D123: Хлеб пшеничный /хлеб ржаной | E123: 60 | F123: 4.26 | G123: 0.6 | H123: 24.78 | I123: 123 | J123: 108/109 | K123: 6
C124: фрукты
C127: итого | E127: =SUM(E120:E126) -> 540 | F127: =SUM(F120:F126) -> 19.57 | G127: =SUM(G120:G126) -> 14.76 | H127: =SUM(H120:H126) -> 112.11 | I127: =SUM(I120:I126) -> 665 | K127: =SUM(K120:K126) -> 96.26
A128: =A120 -> 2 | B128: Обед | C128: закуска
C129: 1 блюдо
C130: 2 блюдо
C131: гарнир
C132: напиток
C133: хлеб бел.
C134: хлеб черн.
C137: итого | E137: =SUM(E128:E136) -> 0 | F137: 0 | G137: 0 | H137: 0 | I137: 0 | K137: =SUM(K128:K136) -> 0
A138: =A120 -> 2 | B138: Итого за день: | E138: =E127+E137 -> 540 | F138: 19.57 | G138: 14.76 | H138: 112.11 | I138: 665 | K138: =K127+K137 -> 96.26
A139: 3 | B139: Завтрак | C139: гор.блюдо | D139: Фрикадельки из кур с соусом /каша гречневая/бутерброд с сыром | E139: 295 | F139: 23.33 | G139: 25.53 | H139: 53.39 | I139: 527 | J139: 410/435/237/90 | K139: 82.74
C141: гор.напиток | D141: Напиток из шиповника | E141: 200 | F141: 0.7 | G141: 0.3 | H141: 22.8 | I141: 97 | J141: 519 | K141: 9.2
C142: хлеб | D142: Хлеб пшеничный | E142: 40 | F142: 3.04 | G142: 0.32 | H142: 19.68 | I142: 94 | J142: 108 | K142: 4.32
C143: фрукты
C146: итого | E146: =SUM(E139:E145) -> 535 | F146: =SUM(F139:F145) -> 27.07 | G146: =SUM(G139:G145) -> 26.15 | H146: =SUM(H139:H145) -> 95.87 | I146: =SUM(I139:I145) -> 718 | K146: =SUM(K139:K145) -> 96.26
A147: =A139 -> 3 | B147: Обед | C147: закуска
C148: 1 блюдо
C149: 2 блюдо
C150: гарнир
C151: напиток
C152: хлеб бел.
C153: хлеб черн.
C156: итого | E156: =SUM(E147:E155) -> 0 | F156: 0 | G156: 0 | H156: 0 | I156: 0 | K156: =SUM(K147:K155) -> 0
A157: =A139 -> 3 | B157: Итого за день: | E157: =E146+E156 -> 535 | F157: 27.07 | G157: 26.15 | H157: 95.87 | I157: 718 | K157: =K146+K156 -> 96.26
A158: 4 | B158: Завтрак | C158: гор.блюдо | D158: Жаркое-по домашнему/пряник | E158: 280 | F158: 30.62 | G158: 27.15 | H158: 40.92 | I158: 530 | J158: 369/589 | K158: 79.65
C160: гор.напиток | D160: Кофейный напиток | E160: 200 | F160: 3.2 | G160: 2.7 | H160: 15.9 | I160: 79 | J160: 501 | K160: 10.61
C161: хлеб | D161: Хлеб пшеничный /хлеб ржаной | E161: 60 | F161: 4.26 | G161: 0.6 | H161: 24.78 | I161: 123 | J161: 108/109 | K161: 6
C162: фрукты
C165: итого | E165: =SUM(E158:E164) -> 540 | F165: =SUM(F158:F164) -> 38.08 | G165: =SUM(G158:G164) -> 30.45 | H165: =SUM(H158:H164) -> 81.6 | I165: =SUM(I158:I164) -> 732 | K165: =SUM(K158:K164) -> 96.26
A166: =A158 -> 4 | B166: Обед | C166: закуска
C167: 1 блюдо
C168: 2 блюдо
C169: гарнир
C170: напиток
C171: хлеб бел.
C172: хлеб черн.
C175: итого | E175: =SUM(E166:E174) -> 0 | F175: 0 | G175: 0 | H175: 0 | I175: 0 | K175: =SUM(K166:K174) -> 0
A176: =A158 -> 4 | B176: Итого за день: | E176: =E165+E175 -> 540 | F176: 38.08 | G176: 30.45 | H176: 81.6 | I176: 732 | K176: =K165+K175 -> 96.26
A177: 5 | B177: Завтрак | C177: гор.блюдо | D177: Кнели из кур с соусом /каша ячневая/печенье | E177: 280 | F177: 19.86 | G177: 25.62 | H177: 68.86 | I177: 585 | J177: 411/435/563 | K177: 76.52
C179: гор.напиток | D179: Компот из смеси сухофруктов | E179: 200 | F179: 0.5 | H179: 27 | I179: 110 | J179: 508 | K179: 16.35
C180: хлеб | D180: Хлеб пшеничный | E180: 30 | F180: 2.28 | G180: 0.24 | H180: 14.76 | I180: 71 | J180: 108 | K180: 3.39
C181: фрукты
C184: итого | E184: =SUM(E177:E183) -> 510 | F184: =SUM(F177:F183) -> 22.64 | G184: =SUM(G177:G183) -> 25.86 | H184: =SUM(H177:H183) -> 110.62 | I184: =SUM(I177:I183) -> 766 | K184: =SUM(K177:K183) -> 96.26
A185: =A177 -> 5 | B185: Обед | C185: закуска
C186: 1 блюдо
C187: 2 блюдо
C188: гарнир
C189: напиток
C190: хлеб бел.
C191: хлеб черн.
C194: итого | E194: =SUM(E185:E193) -> 0 | F194: 0 | G194: 0 | H194: 0 | I194: 0 | K194: =SUM(K185:K193) -> 0
A195: =A177 -> 5 | B195: Итого за день: | E195: =E184+E194 -> 510 | F195: 22.64 | G195: 25.86 | H195: 110.62 | I195: 766 | K195: =K184+K194 -> 96.26
B196: Среднее значение за период: | E196: =(E24+E43+E62+E81+E100+E119+E138+E157+E176+E195)/(IF(E24=0,0,1)+IF(E43=0,0,1)+IF(E62=0,0,1)+IF(E81=0,0,1)+IF(E100=0,0,1)+IF(E119=0,0,1)+IF(E138=0,0,1)+IF(E157=0,0,1)+IF(E176=0,0,1)+IF(E195=0,0,1)) -> 538 | F196: 23.79 | G196: 21.393 | H196: 100.515 | I196: 688.5 | K196: =(K24+K43+K62+K81+K100+K119+K138+K157+K176+K195)/(IF(K24=0,0,1)+IF(K43=0,0,1)+IF(K62=0,0,1)+IF(K81=0,0,1)+IF(K100=0,0,1)+IF(K119=0,0,1)+IF(K138=0,0,1)+IF(K157=0,0,1)+IF(K176=0,0,1)+IF(K195=0,0,1)) -> 96.26
